Cogmind - Beta 10.2 @@@ ROGUE MODE // 2021.09.19 @ 13:38:33 Player: Jezoensis Result: Self-destructed Performance ------------- Evolutions (2) 1000 Regions Visited (5) 1000 Robots Destroyed (23) 115 Value Destroyed (316) 316 Prototype IDs (23) 460 Alien Tech Used (0) 0 Bonus (300) 300 TOTAL SCORE: 3191 Bonus ------- Aligned with FarCom 300 Cogmind --------- Core Integrity 550/550 Matter 255/300 Energy 93/100 System Corruption 6% Temperature Cool (0) Movement Treading (160) Location -8/Materials Parts ------- > --- POWER (1) -------- (None) > --- PROPULSION (3) --- Light Treads Light Treads Light Treads > --- UTILITY (5) ------ Medium Storage Unit Large Storage Unit Improved Terrain Scanner Terrain Scan Processor > --- WEAPON (2) ------- Assault Rifle > --- INVENTORY (14) --- Light Treads Armored Treads Carbon-fiber Leg Large Storage Unit High-capacity Matter Pod (200) Improved Terrain Scanner Improved Terrain Scanner Improved Terrain Scanner Supersonic Drone Bay (1/1) Medium Laser Medium Laser Medium Laser Peak State ------------ > --- POWER ------------ Light Ion Engine > --- PROPULSION ------- Light Treads Light Treads Light Treads > --- UTILITY ---------- Medium Storage Unit Large Storage Unit Improved Terrain Scanner Terrain Scan Processor > --- WEAPON ----------- Medium Laser Assault Rifle > --- INVENTORY -------- Carbon-fiber Leg Large Storage Unit High-capacity Matter Pod Improved Terrain Scanner Improved Terrain Scanner Improved Terrain Scanner Supersonic Drone Bay Medium Laser Medium Laser Mining Laser [Rating: 14] Favorites ----------- Power Ion Engine Engine Ion Engine Propulsion Light Treads Treads Light Treads Utility Improved Terrain Scanner Device Improved Terrain Scanner Storage Large Storage Unit Processor Terrain Scan Processor Weapon Assault Rifle Energy Gun Medium Laser Ballistic Gun Assault Rifle Special Weapon Mining Laser Build | -11 -10 -10 -10 -9 -8 ------- Run | Scr Mat Min Exi Min Mat Slots Evolved 4 | . . . . . 4 Power . | . . . . . . Propulsion 1 | . . . . . 1 Utility 3 | . . . . . 3 Weapon . | . . . . . . Parts Attached 32 | 7 17 . 1 3 4 Power 2 | 1 . . 1 . . Engine 2 | 1 . . 1 . . Core . | . . . . . . Reactor . | . . . . . . Propulsion 4 | 2 1 . . . 1 Treads 4 | 2 1 . . . 1 Leg . | . . . . . . Wheel . | . . . . . . Hover . | . . . . . . Flight . | . . . . . . Utility 12 | 2 7 . . 1 2 Device 6 | 1 4 . . . 1 Storage 5 | 1 3 . . 1 . Processor 1 | . . . . . 1 Hackware . | . . . . . . Protection . | . . . . . . Artifact . | . . . . . . Weapon 14 | 2 9 . . 2 1 Energy Gun 6 | 1 4 . . 1 . Energy Cannon . | . . . . . . Ballistic Gun 3 | 1 2 . . . . Ballistic Cannon . | . . . . . . Launcher . | . . . . . . Special Weapon 5 | . 3 . . 1 1 Impact Weapon . | . . . . . . Slashing Weapon . | . . . . . . Piercing Weapon . | . . . . . . Special Melee Weapon . | . . . . . . Unidentified Prototypes . | . . . . . . Parts Lost 3 | . 1 . . . 2 Power 1 | . . . . . 1 Propulsion . | . . . . . . Utility . | . . . . . . Weapon 2 | . 1 . . . 1 Highest Loss Streak 2 | . 1 . . . 2 Average Slot Usage (%) 97 | . 96 100 100 100 88 Engine 13 | . 14 14 14 14 9 Treads 27 | . 28 28 28 28 27 Device 10 | . 11 14 14 5 8 Storage 16 | . 14 14 14 22 18 Energy Gun 10 | . 8 14 14 12 6 Ballistic Gun 15 | . 18 14 14 14 9 Special Weapon 1 | . 1 . . 1 2 Naked Turns . | . . . . . . Heaviest Build 32 | 13 26 26 26 31 32 Greatest Support 60 | 40 40 40 40 40 60 Greatest Overweight (x) . | . . . . . . Average Overweight (x) . | . . . . . . Largest Inventory Capacity 14 | 6 12 10 10 14 14 Average Capacity 9 | 5 7 10 10 12 14 Most Carried 12 | 4 10 10 10 12 12 Average Carried 8 | 2 5 10 9 10 11 Final Capacity 14 | 6 10 10 10 14 14 Final Carried 12 | 4 10 10 10 12 12 Class Distribution -------------------- 86% | Mutant 13% | Skirmisher Dominant Class ---------------- Mutant | -10/Materials Mutant | -10/Mines Mutant | -10/Exiles Mutant | -9/Mines Skirmisher | -8/Materials Resources | -11 -10 -10 -10 -9 -8 ----------- Run | Scr Mat Min Exi Min Mat Matter Collected 954 | 240 488 23 140 63 . Remotely . | . . . . . . Salvage Created 827 | 116 545 23 . 143 . Parts 60 | 12 29 2 . 17 . Haulers Intercepted 2 | . 2 . . . . Recyclers Shooed 2 | 1 1 . . . . Parts Field Recycled . | . . . . . . Retrieved Matter . | . . . . . . Parts Self-Destructed . | . . . . . . Prevented . | . . . . . . Kills | -11 -10 -10 -10 -9 -8 ------- Run | Scr Mat Min Exi Min Mat Combat Hostiles Destroyed 7 | . 6 . . 1 . Guns 7 | . 6 . . 1 . Classes Destroyed 8 | 2 5 . . 1 . Worker 4 | . 2 . . 2 . Builder 3 | . 1 . . 2 . Tunneler 5 | 2 . 1 . 2 . Hauler 2 | . 2 . . . . Recycler 2 | 1 1 . . . . Watcher 1 | . 1 . . . . Grunt 6 | . 6 . . . . Assembled 1 | . . . . 1 . Best Kill Streak 4 | 3 3 1 . 4 . Combat Bots Only 2 | . 2 . . 1 . Max Kills in Single Turn 2 | 1 1 1 . 2 . Gunslinging . | . . . . . . Exploded . | . . . . . . Melee . | . . . . . . Uniques/NPCs Destroyed . | . . . . . . Combat | -11 -10 -10 -10 -9 -8 -------- Run | Scr Mat Min Exi Min Mat Damage Taken 561 | . 361 . . . 200 Core 80 | . 80 . . . . Absorbed by Shields . | . . . . . . Core Remaining (%) 84 | 100 . . . 68 . Volleys Fired 103 | 4 73 1 . 20 5 Largest 2 | 2 2 2 . 2 2 Hottest 100 | 60 100 70 . 100 100 Shots Fired 185 | 8 134 2 . 35 6 Gun 169 | 8 127 2 . 30 2 Cannon . | . . . . . . Launcher . | . . . . . . Special 16 | . 7 . . 5 4 Kinetic 120 | 4 99 1 . 15 1 Thermal 65 | 4 35 1 . 20 5 Explosive . | . . . . . . Electromagnetic . | . . . . . . Robot Hit Streak 17 | 5 17 1 . 6 7 Robot Miss Streak 6 | 1 6 1 . 4 . Penetration Max . | . . . . . . Secondary Targets . | . . . . . . Shots Hit Robots 104 | 6 80 1 . 15 2 Core Hits 39 | 4 27 1 . 7 . Critical Hits 1 | 1 . . . . . Critical Kills 1 | 1 . . . . . Critical Parts Destroyed . | . . . . . . Melee Attacks . | . . . . . . Impact . | . . . . . . Slashing . | . . . . . . Piercing . | . . . . . . Sneak Attacks . | . . . . . . Combat Hostiles . | . . . . . . Follow-up Attacks . | . . . . . . Damage Inflicted 1247 | 75 913 27 . 205 27 Guns 1246 | 75 912 27 . 205 27 Cannons . | . . . . . . Explosions . | . . . . . . Melee . | . . . . . . Ramming 1 | . 1 . . . . Kinetic 832 | 41 671 14 . 91 15 Thermal 414 | 34 241 13 . 114 12 Explosive . | . . . . . . Electromagnetic . | . . . . . . Impact . | . . . . . . Slashing . | . . . . . . Piercing . | . . . . . . Highest Corruption . | . . . . . . Average Corruption . | . . . . . . Corruption Purged . | . . . . . . Overload Shots . | . . . . . . Overflow Damage . | . . . . . . Projectiles . | . . . . . . Explosions . | . . . . . . Melee . | . . . . . . Knockbacks . | . . . . . . Impact . | . . . . . . Kinetic . | . . . . . . Secondary . | . . . . . . Self-Inflicted Damage . | . . . . . . Shots . | . . . . . . Rammed 2 | . 2 . . . . Targets Rammed 2 | . 2 . . . . Kicked . | . . . . . . Crushed . | . . . . . . Highest Temperature 237 | . 237 9 . 54 . Average Temperature 36 | . 46 6 . 18 . Received Heat Transfer 201 | . 201 . . . . Siege Activations . | . . . . . . Robots Corrupted . | . . . . . . Combat Hostiles . | . . . . . . Parts Fried . | . . . . . . Impact Corruptions . | . . . . . . Robots Melted . | . . . . . . Combat Hostiles . | . . . . . . Parts Melted . | . . . . . . Heat Transferred 1088 | 75 606 37 . 333 37 Parts Sabotaged . | . . . . . . Parts Stolen . | . . . . . . Parts Stripped . | . . . . . . Power Chain Reactions . | . . . . . . Missiles Intercepted . | . . . . . . Alert | -11 -10 -10 -10 -9 -8 ------- Run | Scr Mat Min Exi Min Mat Peak Influence 216 | 15 216 5 . 30 17 Initial 9 | . 9 . . . . Average 31 | 6 51 1 . 3 14 Maximum Alert Level 1 | . 1 . . . . Low Security (%) 99 | 100 98 100 . 100 100 Level 1 . | . 1 . . . . Level 2 . | . . . . . . Level 3 . | . . . . . . Level 4 . | . . . . . . Level 5 . | . . . . . . High Security . | . . . . . . Max Security . | . . . . . . Squads Dispatched 2 | . 1 . . . 1 Investigation . | . . . . . . Extermination . | . . . . . . Reinforcement 2 | . 1 . . . 1 Assault . | . . . . . . Garrison . | . . . . . . Intercept . | . . . . . . Construction Impeded . | . . . . . . Haulers Reinforced . | . . . . . . Stealth | -11 -10 -10 -10 -9 -8 --------- Run | Scr Mat Min Exi Min Mat Distress Signals . | . . . . . . Communications Jammed . | . . . . . . Distress Signals . | . . . . . . Times Spotted 28 | . 20 . . 6 2 Peak Tracking Total 9 | . 3 . . 9 . Tactical Retreats 1 | . 1 . . . . Traps | -11 -10 -10 -10 -9 -8 ------- Run | Scr Mat Min Exi Min Mat Traps Triggered . | . . . . . . Indirectly . | . . . . . . Trap Hack Attempts . | . . . . . . Triggered . | . . . . . . Disarmed . | . . . . . . Reprogrammed . | . . . . . . Reused . | . . . . . . Traps Extracted . | . . . . . . Installed . | . . . . . . Triggered . | . . . . . . Machines | -11 -10 -10 -10 -9 -8 ---------- Run | Scr Mat Min Exi Min Mat Machines Disabled . | . . . . . . Max in Single Turn . | . . . . . . Machines Sabotaged . | . . . . . . Garrisons Compromised . | . . . . . . Overloaded Fab Kills . | . . . . . . Fab Network Shutdowns . | . . . . . . Hacking | -11 -10 -10 -10 -9 -8 --------- Run | Scr Mat Min Exi Min Mat Machines Accessed 10 | . 8 . 1 . 1 Terminals 8 | . 7 . . . 1 Fabricators . | . . . . . . Repair Stations . | . . . . . . Recycling Units 1 | . 1 . . . . Scanalyzers . | . . . . . . Garrison Access . | . . . . . . Total Hacks 32 | . 28 . 1 . 3 Successful 13 | . 12 . 1 . . Failed 19 | . 16 . . . 3 Catastrophic 1 | . 1 . . . . Database Lockouts . | . . . . . . Manual 30 | . 26 . 1 . 3 Terminals 26 | . 23 . . . 3 Fabricators . | . . . . . . Repair Stations . | . . . . . . Recycling Units 5 | . 5 . . . . Scanalyzers . | . . . . . . Garrison Access . | . . . . . . Terminal Hacks 7 | . 6 . 1 . . Part Schematic 2 | . 2 . . . . Robot Analysis 1 | . 1 . . . . Terminal Index 1 | . 1 . . . . Locate Traps 2 | . 2 . . . . EX-Prototype ID Bank 1 | . . . 1 . . Fabricator Hacks . | . . . . . . Repair Station Hacks . | . . . . . . Recycling Unit Hacks . | . . . . . . Scanalyzer . | . . . . . . Garrison Access Hacks . | . . . . . . Unauthorized Hacks 6 | . 6 . . . . Terminals 4 | . 4 . . . . Track 2 | . 2 . . . . Botnet 2 | . 2 . . . . Fabricators . | . . . . . . Repair Stations . | . . . . . . Recycling Units 2 | . 2 . . . . Reject 1 | . 1 . . . . Recyclers 1 | . 1 . . . . Scanalyzers . | . . . . . . Garrison Access . | . . . . . . Data Cores Recovered . | . . . . . . Used . | . . . . . . Hacking Detections 9 | . 8 . . . 1 Full Trace Events . | . . . . . . Feedback Events . | . . . . . . Feedback Blocked . | . . . . . . Robot Schematics Acquired . | . . . . . . Robots Built . | . . . . . . Matter . | . . . . . . Time . | . . . . . . Total Robot Build Rating . | . . . . . . Part Schematics Acquired 2 | . 2 . . . . Parts Built . | . . . . . . Matter . | . . . . . . Time . | . . . . . . Total Part Build Rating . | . . . . . . Parts Repaired . | . . . . . . Time . | . . . . . . Parts Recycled . | . . . . . . Recycled Matter . | . . . . . . Retrieved Matter . | . . . . . . Retrieved Components . | . . . . . . Parts Scanalyzed . | . . . . . . Part Schematics Acquired . | . . . . . . Parts Damaged . | . . . . . . Bothacking | -11 -10 -10 -10 -9 -8 ------------ Run | Scr Mat Min Exi Min Mat Used RIF Installer . | . . . . . . Robots Hacked . | . . . . . . Non-combat . | . . . . . . Combat . | . . . . . . Robot Hacks Applied . | . . . . . . Relay Couplers Released . | . . . . . . Robots Rewired . | . . . . . . Allies Hacked . | . . . . . . Hacks Repelled . | . . . . . . Allies | -11 -10 -10 -10 -9 -8 -------- Run | Scr Mat Min Exi Min Mat Total Allies . | . . . . . . Largest Group . | . . . . . . Highest-Rated Group . | . . . . . . Highest-Rated Ally . | . . . . . . Total Orders . | . . . . . . Ally Attacks . | . . . . . . Total Damage . | . . . . . . Kills . | . . . . . . Allies Corrupted . | . . . . . . Allies Melted . | . . . . . . Intel | -11 -10 -10 -10 -9 -8 ------- Run | Scr Mat Min Exi Min Mat Robot Analysis Total 1 | . 1 . . . . Derelict Logs Recovered 1 | . . . . 1 . Drone Launches . | . . . . . . Drone Recoveries . | . . . . . . Exploration | -11 -10 -10 -10 -9 -8 ------------- Run | Scr Mat Min Exi Min Mat Turns Passed 2539 | 71 1220 99 381 645 123 Spaces Moved 1342 | 33 594 61 237 357 60 Core 7 | 7 . . . . . Treads 1335 | 26 594 61 237 357 60 Legs . | . . . . . . Wheels . | . . . . . . Hover . | . . . . . . Flight . | . . . . . . Fastest Speed 50 | 50 160 160 160 160 160 Average Speed 159 | 136 160 160 160 160 160 Slowest Speed 160 | 160 160 160 160 160 160 Overloaded Moves . | . . . . . . Propulsion Burnouts . | . . . . . . Robots Hopped . | . . . . . . Cave-ins Triggered 1 | . . . . . 1 Exploration Rate (%) 47 | 4 97 27 67 81 8 Regions Visited 5 Branch Regions 3 Pre-discovered Areas 1 | . . . . 1 . Known Exits Taken . | . . . . . . Unknown Exits Taken 5 | 1 1 1 1 1 . Scrap Searched 1 | . . . . 1 . Spaces Dug 16 | . 7 . . 5 4 Terrain Destroyed 16 | . 7 . . 5 4 Melee . | . . . . . . Projectile 16 | . 7 . . 5 4 AOE . | . . . . . . Terrain Rammed . | . . . . . . Walls Destroyed . | . . . . . . Machines Disabled . | . . . . . . Actions | -11 -10 -10 -10 -9 -8 --------- Run | Scr Mat Min Exi Min Mat Total 1526 | 48 721 61 239 385 72 Wait 17 | . 17 . . . . Move 1337 | 32 593 60 236 356 60 Hop . | . . . . . . Pick Up 21 | 5 8 . 1 4 3 Fast Attach 10 | 6 4 . . . . Attach 10 | 1 5 . 1 . 3 Detach 5 | . 5 . . . . Swap 12 | . 8 . . 3 1 Drop 9 | . 6 . 1 2 . Fire 103 | 4 73 1 . 20 5 Melee . | . . . . . . Ram . | . . . . . . Kick . | . . . . . . Crush 2 | . 2 . . . . Escape Stasis . | . . . . . . Rewire . | . . . . . . Trap . | . . . . . . Miscellaneous . | . . . . . . Route ------- -11/Scrapyard -10/Materials (discovered 4 exits: [*Mat x3] / [*Min]) -10/Mines -10/Exiles -9/Mines -8/Materials History --------- Turn | Location | Event 18 | -11/Scrapyard | Discovered new exit (range 15) 72 | -11/Scrapyard | Entered Materials 251 | -10/Materials | Discovered new exit (range 13) 311 | -10/Materials | Build established: Mutant 474 | -10/Materials | Discovered new exit (range 16) 637 | -10/Materials | Discovered new exit (range 11) 1027 | -10/Materials | Discovered new exit (range 11) 1292 | -10/Materials | Entered Mines 1326 | -10/Mines | Met a Derelict bent on vengeance 1385 | -10/Mines | Deemed a non-threat by the Exiles lab entrance 1385 | -10/Mines | Discovered new exit (range 5) 1391 | -10/Mines | Entered Exiles 1435 | -10/Exiles | Met 8R-AWN 1459 | -10/Exiles | Met EX-HEX 1502 | -10/Exiles | Met EX-BIN 1519 | -10/Exiles | Aligned with FarCom system 1521 | -10/Exiles | Given EX-Vault access code 1558 | -10/Exiles | Opened EX-Vault 1569 | -10/Exiles | Found Supersonic Drone Bay 1602 | -10/Exiles | Warned to stay clear of 0b10 Research branches 1645 | -10/Exiles | Met EX-DEC 1759 | -10/Exiles | Discovered new exit (range 10) 1772 | -10/Exiles | Left Exiles lab with Supersonic Drone Bay 1772 | -10/Exiles | Entered Mines 2173 | -9/Mines | Assembled infested the area 2178 | -9/Mines | Assisted by a Guerilla fighting off Assembled 2413 | -9/Mines | Discovered new exit (range 2) 2417 | -9/Mines | Entered Materials 2417 | -8/Materials | Evolved 4 slots: Propulsion x1, Utility x3 2540 | -8/Materials | Crushed by falling debris 2540 | -8/Materials | Self-destructed Last Messages --------------- LOCATION=UNKNOWN GOAL=ESCAPE 02417_ Receiving FarCom transmissions... 02418_ O-16 Technician: "IFF HANDSHAKE FAILED. SECURING TERMINAL." 02418_ O-16 Technician uses terminal to summon reinforcements. 02418_ ALERT: Hostiles spotted, dispatching reinforcements to Terminal M011. 02418_ O-16 Technician locks terminal. 02447_ Acquired Carbon-fiber Leg. 02450_ Acquired Lgt. Treads. 02472_ Acquired Arm. Treads. 02481_ K-01 Serf collects debris. 02498_ Connecting with Terminal... 02498_ Current location identified: Materials 02540_ The unstable cave ceiling collapses. 02540_ Crushed by falling debris. 02540_ Lgt. Ion Engine destroyed. 02540_ System corrupted by crushing effect (+4). 02540_ Mining Laser destroyed. 02540_ System corrupted by crushing effect (+2). Map ----- +----------------------------------------------------+ | ????? ??# ## ## # | | ????????## " ## ## # | | ???????#?#""" ## ## # | | ?????? #?#""" ## ## # | | ?????????#""" # # ! # | | ????????## "" # # ! # | | ??#??###?#""" + T + # | | ??????#??#"" # # # | | ???????###"" # # # | | ?????#???# " ## ## # | | ?????????# ## ## # | | ????? ? ?# ## ## # | | ????? ???# ## ######## | | ?????? ?######### ##??###? | | ???? ????# """? # #??#?#?# | | ??????????? "????# ####?### | | ??????"??# ???"??### ######## | | ??????? ???? ??#?# ### # | | ????#+????? ? ? ?### ### # | | ????? ? #######+## ] # # | | ?????? g # # | | ?????? T + # | | ?????? g g # # | | ?????? #######+## # # | | ?????????##?? ?####### # | | ??????????????? ?#?###?# @ # | | ???????? ?+?"?? ?#?#?#?###### | | ??????????? ?T???#??#?## ###? | | ?????????#? ""?????##??# #??# | | ??????????# "" ?#???#??#"#?#? | | ??????????#? ? ?#??#???Y###?? | | ??????????#+????# ???? ???? | | ?????????????????? ??"" ""??# | | ???????????????#??????? ??"?? | | ????????????????#?????" ????# | | ?????????????? ??? ??? ?? ?? | | ??????????????? ???? ? ?# | | ????????????????? ???]]?? ?? | | ????????????????????? ]?? ??# | | ??????????????? ???? ]?????? | | ????????????????????? ? ???# | | ????????????????????? ?????? | | ????????????????????????????? | | ????????????????????????????? | | ????????????????????????????? | | ????????????????????????????? | | ????????????????????????????? | | ????????????????????????????? | | ????????????????????????????? | | ????????????????????????????? | +----------------------------------------------------+ Best States ------------- Heat Dissipation 31 Energy Generation 10 Energy Capacity 250 Matter Stores 300 Matter Capacity 300 Sight Range 16 Terrain Scan Range 16 Terrain Scan Density 85 Evasion (%) 40 Recoil Reduction 3 Item Schematics ----------------- Lrg. Storage Unit | -10/Materials | Hacked ECM Suite | -10/Materials | Hacked Robot Schematics ------------------ None Fabricated ------------ Nothing Alien Tech Used ----------------- None Achievements -------------- None Challenges ------------ None Game ------ Seed SpikedExperimentalKit Manual? 0 Play Time 00:19:20 Cumulative 280.0 hours Start 2021.09.19 @ 13:20:41 End 2021.09.19 @ 13:38:33 Sessions 1 Manual Loads 0 Difficulty Rogue Special Mode None Game No. 117 Rogue 15 Adventurer 100 Explorer 2 Win Type - Total 17 Types 14/2/0/0/0/0/0/0/1 Lore% 48 Gallery% 76 Achievement% 53 Wizard Run 0 Options --------- ASCII 0 Keyboard 1 Movement Numpad Keybinds 0 Fullscreen 1 Font 36/TerminusFine Map View 76x50 Tactical HUD 1 Map Filters NONE Filters NONE Steam 1 RUN: 1dab72d5-c4dc-44b5-8b6e-34f9cf8bd85a